{"text_format":"3","workbook":"xlsx","n_sheets":6,"sheets":["Comparaison","Source Thérion ","Import a réaliser","N° de colonne","Formule pour fichier","Feuil2"],"read":"whole","date_system":"1900"}

{"sheet":"Comparaison","index":0,"n_rows":34,"n_cols":50,"rows_kept":34,"merged":[[8,0,9,0],[22,0,23,0],[32,0,33,0]]}
[]
[{"$nulls":4},"1° : données entrées"]
[]
[]
[null,"Fichier Import Karsteau",null,"Numéro entrée (10 caractères maxi)","Nom entrée","Synonyme 1 entrée","Synonyme 2 entrée","Synonyme 3  entrée","Marquage 1 entrée","Marquage 2 entrée","Marquage 3 entrée","Coord X","Coord Y","Z","Unité UTM m/km","Système","Fuseau UTM / zone Lambert","Méthode de détermination","Source coordonnées","Date coordonnées","Coordonnées vérifiées (O/N/vide)","Source des infos","Code secteur","Nom du Secteur","Code Zone","Nom Zone","Lieu-dit","Code Pays","Code commune (INSEE)","Nom Commune","Numéro parcelle cadastre","Références hydro de surface","Infos en acces libre (O/N)","Entrée et cavité cachées   (O/N)","Entrée et cavité existent dans karsteau  (O/N)","Id entrée","Id cavité","Nature entrée         (N, A, R)","Accès entrée (I,H,V,-)","Hydrologie entrée (S,P,E,I)","Circulation entrée       (T,P)","Recoupe circulation (T,P)","Catégorie hydro de l'entrée","Débit mini","Débit moyen","Débit maxi","Dimensions entrée en m","Catégorie morpho de l'entrée","Courant d'air    (O/N)","Terrain non karstique (O si non karstique)"]
["Obligatoire","Oui \\ non",null,null,"oui",{"$nulls":6},"oui ou alternative","oui ou alternative",null,"oui ou alternative","oui ou alternative","oui ou alternative",{"$nulls":5},"oui ou alternative","oui ou alternative","oui ou alternative","oui ou alternative",null,"oui","oui ou alternative","oui ou alternative",{"$nulls":4},"Oui",null,null,"oui","oui","oui"]
[]
[]
["Comparaison","Cellules fichier Therion","ENT_ID","ENT_ID_CAVITE","ENT_NUM","ENT_NAME","ENT_SYNO_1","ENT_SYNO_2","ENT_SYNO_3","ENT_MARQ_1","ENT_MARQ_2","ENT_MARQ_3","ENT_COORD_X","ENT_COORD_Y","ENT_COORD_Z","ENT_UNIT_COORD","ENT_SYS_COORD","ENT_ZONE_COORD","ENT_METHODE_COORD","ENT_SOURCE_COORD","ENT_DATE_COORD","ENT_ACCES_LIBRE","ENT_PATH","ENT_KEY_KARSTEAU","ENT_DATE_UPDATE"]
[null,"Cellule fichier Karsteau",null,"Numéro entrée (10 caractères maxi)",null,"Nom entrée","Synonyme 1 entrée","Synonyme 2 entrée","Synonyme 3  entrée","Marquage 1 entrée","Marquage 2 entrée","Marquage 3 entrée","Coord X","Coord Y","Z","Unité UTM m/km","Système",null,null,"Source coordonnées","Date coordonnées","Infos en acces libre (O/N)"]
[]
[]
[]
[{"$nulls":4},"2° : données cavités"]
[]
[]
[null,"Fichier Import Karsteau",null,"Nom cavité (si différent de l'entrée)","Synonyme cavité 1 (si différent de l'entrée)","Synonyme cavité 2 (si différent de l'entrée)","Synonyme cavité 3 (si différent de l'entrée)","Nature de la cavité\nA / C / TA / TE ","Développement","Dénivelé -","Dénivelé +","Auteur spéléométrie","Date spéléométrie","Code Hydro","Système Hydro"]
["Obligatoire","Oui \\ non",null,"Non","Non","Non","Non","Non","Non","Non","Non","Non","Non","Non","Non"]
[]
[]
[]
[]
["Comparaison","Cellules fichier Therion","CAVITE_ID","CAVITE_NAME","CAVITE_SYNO_1","CAVITE_SYNO_2","CAVITE_SYNO_3","CAVITE_DEV","CAVITE_DENIV_PLUS","CAVITE_DENIV_MOINS","CAVITE_PATH","CAVITE_KEY_KARSTEAU","CAVITE_DATE_UPDATE"]
[null,"Cellule fichier Karsteau",null,"Nom cavité (si différent de l'entrée)","Synonyme cavité 1 (si différent de l'entrée)","Synonyme cavité 2 (si différent de l'entrée)","Synonyme cavité 3 (si différent de l'entrée)","Développement","Dénivelé +","Dénivelé -"]
[]
[]
[]
[{"$nulls":4},"3° : documents"]
[]
[null,"Fichier Import Karsteau",null,"Lié à \"entrée\" \"cavité\" \"terminus\"","Nature : \"texte\" \"photo\" \"topo\" \"kml\" \"carte\" \"autre\"","Titre","Date","Auteur document","Description Résumé","Texte ou Nom de fichier","Catégories"]
["Obligatoire","Oui \\ non",null,"oui","oui","Non","Non","Non","Non","oui","oui"]
[]
["Comparaison","Cellules fichier Therion","DOCUMENT_1_AUTEUR","DOCUMENT_1_CAT","DOCUMENT_1_DATE","DOCUMENT_1_DATE_UPDATE","DOCUMENT_1_DESCRIPTION","DOCUMENT_1_FILE","DOCUMENT_1_ID","DOCUMENT_1_KEY_KARSTEAU","DOCUMENT_1_LIE","DOCUMENT_1_NATURE","DOCUMENT_1_TEXT","DOCUMENT_1_TITRE"]
[null,"Cellule fichier Karsteau","Auteur document","Catégories","Date","Pas prévue","Description Résumé","Texte ou Nom de fichier","Qu'est ce","Vide","Lié à \"entrée\" \"cavité\" \"terminus\"","Nature : \"texte\" \"photo\" \"topo\" \"kml\" \"carte\" \"autre\"","Vide","Titre"]

{"sheet":"Source Thérion ","index":1,"n_rows":31,"n_cols":168,"rows_kept":31}
["DOCUMENT_4_TEXT","DOCUMENT_4_TITRE","DOCUMENT_5_AUTEUR","DOCUMENT_5_CAT","DOCUMENT_5_DATE","DOCUMENT_5_DATE_UPDATE","DOCUMENT_5_DESCRIPTION","DOCUMENT_5_FILE","DOCUMENT_5_ID","DOCUMENT_5_KEY_KARSTEAU","DOCUMENT_5_LIE","DOCUMENT_5_NATURE","DOCUMENT_5_TEXT","DOCUMENT_5_TITRE","DOCUMENT_6_AUTEUR","DOCUMENT_6_CAT","DOCUMENT_6_DATE","DOCUMENT_6_DATE_UPDATE","DOCUMENT_6_DESCRIPTION","DOCUMENT_6_FILE","DOCUMENT_6_ID","DOCUMENT_6_KEY_KARSTEAU","DOCUMENT_6_LIE","DOCUMENT_6_NATURE","DOCUMENT_6_TEXT","DOCUMENT_6_TITRE","DOCUMENT_7_AUTEUR","DOCUMENT_7_CAT","DOCUMENT_7_DATE","DOCUMENT_7_DATE_UPDATE","DOCUMENT_7_DESCRIPTION","DOCUMENT_7_FILE","DOCUMENT_7_ID","DOCUMENT_7_KEY_KARSTEAU","DOCUMENT_7_LIE","DOCUMENT_7_NATURE","DOCUMENT_7_TEXT","DOCUMENT_7_TITRE","DOCUMENT_8_AUTEUR","DOCUMENT_8_CAT","DOCUMENT_8_DATE","DOCUMENT_8_DATE_UPDATE","DOCUMENT_8_DESCRIPTION","DOCUMENT_8_FILE","DOCUMENT_8_ID","DOCUMENT_8_KEY_KARSTEAU","DOCUMENT_8_LIE","DOCUMENT_8_NATURE","DOCUMENT_8_TEXT","DOCUMENT_8_TITRE","DOCUMENT_9_AUTEUR","DOCUMENT_9_CAT","DOCUMENT_9_DATE","DOCUMENT_9_DATE_UPDATE","DOCUMENT_9_DESCRIPTION","DOCUMENT_9_FILE","DOCUMENT_9_ID","DOCUMENT_9_KEY_KARSTEAU","DOCUMENT_9_LIE","DOCUMENT_9_NATURE","DOCUMENT_9_TEXT","DOCUMENT_9_TITRE"]
[]
[]
[null,"Polygonale kml","",72,"2025-05-05 10:16:05","2025-05-05 10:16:05","Topo de Grotte du lac au format Therion","Grotte du lac.zip",8,null,"cavité","autre",null,"Données topo brutes"]
[]
[null,"Données topo brutes"]
[]
[null,"Données topo brutes"]
[null,"Polygonale kml","",72,"2025-05-05 10:16:05","2025-05-05 10:16:05","Topo de Russes-CA au format Therion","Russes-CA.zip",21,null,"cavité","autre",null,"Données topo brutes"]
[]
[]
[null,"Polygonale kml","",72,"2025-05-05 10:16:05","2025-05-05 10:16:05","Topo de Suwly-oyuk au format Therion","Suwly-oyuk.zip",26,null,"cavité","autre",null,"Données topo brutes"]
[null,"Polygonale kml","",72,"2025-05-05 10:16:05","2025-05-05 10:16:05","Topo de Grotte des Chauves-Souris au format Therion","Grotte des Chauves-Souris.zip",31,null,"cavité","autre",null,"Données topo brutes"]
[null,"Polygonale kml","",72,"2025-05-05 10:16:05","2025-05-05 10:16:05","Topo de Petit-General au format Therion","Petit-General.zip",36,null,"cavité","autre",null,"Données topo brutes"]
[null,"Polygonale kml","",72,"2025-05-05 10:16:05","2025-05-05 10:16:05","Topo de Hanaka au format Therion","Hanaka.zip",41,null,"cavité","autre",null,"Données topo brutes"]
[]
[null,"Polygonale kml","",87,"2025-05-05 10:16:05","2025-05-05 10:16:05","Polygonale de Grotte des Chèvres au format google earth","Chevres.kml",46,null,"cavité","kml",null,"Polygonale kml","",72,"2025-05-05 10:16:05","2025-05-05 10:16:05","Topo de Grotte des Chèvres au format Therion","Grotte des Chèvres.zip",47,null,"cavité","autre",null,"Données topo brutes"]
[null,"Polygonale kml","",72,"2025-05-05 10:16:05","2025-05-05 10:16:05","Topo de Gap-Gotan au format Therion","Gap-Gotan.zip",52,null,"cavité","autre",null,"Données topo brutes"]
[]
[]
[]
[]
[null,"Polygonale kml","",72,"2025-05-05 10:16:05","2025-05-05 10:16:05","Topo de Gulshirin (Geophysicheskaya) au format Therion","Gulshirin (Geophysicheskaya).zip",57,null,"cavité","autre",null,"Données topo brutes"]
[null,"Polygonale kml","",87,"2025-05-05 10:16:05","2025-05-05 10:16:05","Polygonale de Hashim-oyuk au format google earth","Hashim-oyuk.kml",62,null,"cavité","kml",null,"Polygonale kml","",72,"2025-05-05 10:16:05","2025-05-05 10:16:05","Topo de Hashim-oyuk au format Therion","Hashim-oyuk.zip",63,null,"cavité","autre",null,"Données topo brutes"]
[null,"Polygonale kml","",72,"2025-05-05 10:16:05","2025-05-05 10:16:05","Topo de Tush-Yurruck au format Therion","Tush-Yurruck.zip",68,null,"cavité","autre",null,"Données topo brutes"]
[null,"Vertikalnaya plan - 1:500","Xavier Robert",73,"2025-05-05 10:21:49","2025-05-05 10:16:05","Gouffre Vertikalnaya, topographie en plan","Vertikalnaya-plan.pdf",73,null,"cavité","pdf",null,"Vertikalnaya plan","Alexandre Pont",73,"2025-05-05 10:21:50","2025-05-05 10:16:05","Gouffre Vertikalnaya, topographie en plan","Vertikalnaya-plan_Spelunca.pdf",74,null,"cavité","pdf",null,"Vertikalnaya plan - 1:500","",87,"2025-05-05 10:16:05","2025-05-05 10:16:05","Polygonale de Vertikalnaya au format google earth","Vertikalnaya-model.kml",75,null,"cavité","kml",null,"Polygonale kml","",87,"2025-05-05 10:16:05","2025-05-05 10:16:05","Polygonale de Vertikalnaya au format google earth","Vertikalnaya.kml",76,null,"cavité","kml",null,"Polygonale kml","",72,"2025-05-05 10:16:05","2025-05-05 10:16:05","Topo de Vertikalnaya au format Therion","Vertikalnaya.zip",77,null,"cavité","autre",null,"Données topo brutes"]
[]
[]
[]
[]
["Réservé","Réservé","Lié à \"entrée\" \"cavité\" \"terminus\"","Type : \"texte\" \"photo\" \"topo\" \"kml\" \"carte\" \"autre\"","Titre","Date","Auteur document","Description Résumé","Texte ou Nom de fichier","Catégories","Réservé","Réservé","Réservé","Lié à \"entrée\" \"cavité\" \"terminus\"","Nature : \"texte\" \"photo\" \"topo\" \"kml\" \"carte\" \"autre\"","Titre","Date","Auteur document","Description Résumé","Texte ou Nom de fichier","Catégories","Réservé","Réservé","Réservé","Lié à \"entrée\" \"cavité\" \"terminus\"","Nature : \"texte\" \"photo\" \"topo\" \"kml\" \"carte\" \"autre\"","Titre","Date","Auteur document","Description Résumé","Texte ou Nom de fichier","Catégories","Réservé","Réservé","Réservé","Lié à \"entrée\" \"cavité\" \"terminus\"","Nature : \"texte\" \"photo\" \"topo\" \"kml\" \"carte\" \"autre\"","Titre","Date","Auteur document","Description Résumé","Texte ou Nom de fichier","Catégories","Réservé","Réservé","Réservé","Lié à \"entrée\" \"cavité\" \"terminus\"","Nature : \"texte\" \"photo\" \"topo\" \"kml\" \"carte\" \"autre\"","Titre","Date","Auteur document","Description Résumé","Texte ou Nom de fichier","Catégories","Réservé","Réservé","Réservé","Lié à \"entrée\" \"cavité\" \"terminus\"","Nature : \"texte\" \"photo\" \"topo\" \"kml\" \"carte\" \"autre\"","Titre","Date","Auteur document","Description Résumé","Texte ou Nom de fichier","Catégories","Réservé","Réservé","Réservé","Lié à \"entrée\" \"cavité\" \"terminus\"","Nature : \"texte\" \"photo\" \"topo\" \"kml\" \"carte\" \"autre\"","Titre","Date","Auteur document","Description Résumé","Texte ou Nom de fichier source ","Catégories","Réservé","Réservé","Réservé","Lié à \"entrée\" \"cavité\" \"terminus\"","Nature : \"texte\" \"photo\" \"topo\" \"kml\" \"carte\" \"autre\"","Titre","Date","Auteur document","Description Résumé","Texte ou Nom de fichier","Catégories","Réservé","Réservé","Réservé","Lié à \"entrée\" \"cavité\" \"terminus\"","Nature : \"texte\" \"photo\" \"topo\" \"kml\" \"carte\" \"autre\"","Titre","Date","Auteur document","Description Résumé","Texte ou Nom de fichier","Catégories","Réservé","Réservé","Réservé","Lié à \"entrée\" \"cavité\" \"terminus\"","Nature : \"texte\" \"photo\" \"topo\" \"kml\" \"carte\" \"autre\"","Titre","Date","Auteur document","Description Résumé","Texte ou Nom de fichier","Catégories","Réservé","Réservé","Réservé","Lié à \"entrée\" \"cavité\" \"terminus\"","Nature : \"texte\" \"photo\" \"topo\" \"kml\" \"carte\" \"autre\"","Titre","Date","Auteur document","Description Résumé","Texte ou Nom de fichier","Catégories","Réservé","Réservé","Réservé","Lié à \"entrée\" \"cavité\" \"terminus\"","Nature : \"texte\" \"photo\" \"topo\" \"kml\" \"carte\" \"autre\"","Titre","Date","Auteur document","Description Résumé","Texte ou Nom de fichier","Catégories","Réservé","Réservé","Réservé","Lié à \"entrée\" \"cavité\" \"terminus\"","Nature : \"texte\" \"photo\" \"topo\" \"kml\" \"carte\" \"autre\"","Titre","Date","Auteur document","Description Résumé","Texte ou Nom de fichier","Catégories","Réservé","Réservé","Réservé","Lié à \"entrée\" \"cavité\" \"terminus\"","Nature : \"texte\" \"photo\" \"topo\" \"kml\" \"carte\" \"autre\"","Titre","Date","Auteur document","Description Résumé","Texte ou Nom de fichier","Catégories","Réservé","Réservé","Réservé","Lié à \"entrée\" \"cavité\" \"terminus\"","Nature : \"texte\" \"photo\" \"topo\" \"kml\" \"carte\" \"autre\"","Titre","Date","Auteur document","Description Résumé","Texte ou Nom de fichier","Catégories","Réservé","Réservé","Réservé","Fin de ligne"]

{"sheet":"Import a réaliser","index":2,"n_rows":29,"n_cols":247,"rows_kept":29,"merged":[[0,0,0,1],[0,2,0,33],[0,34,0,46],[0,47,0,58],[0,59,0,65],[0,70,0,77],[0,81,0,88],[0,92,0,99],[0,103,0,110],[0,114,0,121],[0,125,0,132],[0,136,0,143],[0,147,0,154],[0,158,0,165],[0,169,0,176],[0,180,0,187],[0,191,0,198],[0,202,0,209],[0,213,0,220],[0,224,0,231],[0,235,0,242]]}
["Références entrée",null,"Formulaire entrée",{"$nulls":31},"Typologie de l'entrée",{"$nulls":12},"Formulaire cavité",{"$nulls":11},"Document 1",{"$nulls":10},"Document 2",{"$nulls":10},"Document 3",{"$nulls":10},"Document 4",{"$nulls":10},"Document 5",{"$nulls":10},"Document 6",{"$nulls":10},"Document 7",{"$nulls":10},"Document 8",{"$nulls":10},"Document 9",{"$nulls":10},"Document 1",{"$nulls":10},"Document 11",{"$nulls":10},"Document 12",{"$nulls":10},"Document 13",{"$nulls":10},"Document 14",{"$nulls":10},"Document 15",{"$nulls":10},"Document 16",{"$nulls":10},"Document 17",{"$nulls":10},"Fin de ligne"]
["Numéro entrée (1 caractères maxi)","Nom entrée","Synonyme 1 entrée","Synonyme 2 entrée","Synonyme 3  entrée","Marquage 1 entrée","Marquage 2 entrée","Marquage 3 entrée","Coord X","Coord Y","Z","Unité UTM m/km","Système","Fuseau UTM / zone Lambert","Méthode de détermination","Source coordonnées","Date coordonnées","Coordonnées vérifiées (O/N/vide)","Source des infos","Code secteur","Nom du Secteur","Code Zone","Nom Zone","Lieu-dit","Code Pays","Code commune (INSEE)","Nom Commune","Numéro parcelle cadastre","Références hydro de surface","Infos en acces libre (O/N)","Entrée et cavité cachées   (O/N)","Entrée et cavité existent dans karsteau  (O/N)","Id entrée","Id cavité","Nature entrée         (N, A, R)","Accès entrée (I,H,V,-)","Hydrologie entrée (S,P,E,I)","Circulation entrée       (T,P)","Recoupe circulation (T,P)","Catégorie hydro de l'entrée","Débit mini","Débit moyen","Débit maxi","Dimensions entrée en m","Catégorie morpho de l'entrée","Courant d'air    (O/N)","Terrain non karstique (O si non karstique)","Nom cavité (si différent de l'entrée)","Synonyme cavité 1 (si différent de l'entrée)","Synonyme cavité 2 (si différent de l'entrée)","Synonyme cavité 3 (si différent de l'entrée)","Nature de la cavité\nA / C / TA / TE ","Développement","Dénivelé -","Dénivelé +","Auteur spéléométrie","Date spéléométrie","Code Hydro","Système Hydro","Lié à \"entrée\" \"cavité\" \"terminus\"","Nature : \"texte\" \"photo\" \"topo\" \"kml\" \"carte\" \"autre\"","Titre","Date","Auteur document","Description Résumé","Texte ou Nom de fichier","Catégories","Réservé","Réservé","Réservé","Lié à \"entrée\" \"cavité\" \"terminus\"","Nature : \"texte\" \"photo\" \"topo\" \"kml\" \"carte\" \"autre\"","Titre","Date","Auteur document","Description Résumé","Texte ou Nom de fichier","Catégories","Réservé","Réservé","Réservé","Lié à \"entrée\" \"cavité\" \"terminus\"","Type : \"texte\" \"photo\" \"topo\" \"kml\" \"carte\" \"autre\"","Titre","Date","Auteur document","Description Résumé","Texte ou Nom de fichier","Catégories","Réservé","Réservé","Réservé","Lié à \"entrée\" \"cavité\" \"terminus\"","Nature : \"texte\" \"photo\" \"topo\" \"kml\" \"carte\" \"autre\"","Titre","Date","Auteur document","Description Résumé","Texte ou Nom de fichier","Catégories","Réservé","Réservé","Réservé","Lié à \"entrée\" \"cavité\" \"terminus\"","Nature : \"texte\" \"photo\" \"topo\" \"kml\" \"carte\" \"autre\"","Titre","Date","Auteur document","Description Résumé","Texte ou Nom de fichier","Catégories","Réservé","Réservé","Réservé","Lié à \"entrée\" \"cavité\" \"terminus\"","Nature : \"texte\" \"photo\" \"topo\" \"kml\" \"carte\" \"autre\"","Titre","Date","Auteur document","Description Résumé","Texte ou Nom de fichier","Catégories","Réservé","Réservé","Réservé","Lié à \"entrée\" \"cavité\" \"terminus\"","Nature : \"texte\" \"photo\" \"topo\" \"kml\" \"carte\" \"autre\"","Titre","Date","Auteur document","Description Résumé","Texte ou Nom de fichier","Catégories","Réservé","Réservé","Réservé","Lié à \"entrée\" \"cavité\" \"terminus\"","Nature : \"texte\" \"photo\" \"topo\" \"kml\" \"carte\" \"autre\"","Titre","Date","Auteur document","Description Résumé","Texte ou Nom de fichier","Catégories","Réservé","Réservé","Réservé","Lié à \"entrée\" \"cavité\" \"terminus\"","Nature : \"texte\" \"photo\" \"topo\" \"kml\" \"carte\" \"autre\"","Titre","Date","Auteur document","Description Résumé","Texte ou Nom de fichier source ","Catégories","Réservé","Réservé","Réservé","Lié à \"entrée\" \"cavité\" \"terminus\"","Nature : \"texte\" \"photo\" \"topo\" \"kml\" \"carte\" \"autre\"","Titre","Date","Auteur document","Description Résumé","Texte ou Nom de fichier","Catégories","Réservé","Réservé","Réservé","Lié à \"entrée\" \"cavité\" \"terminus\"","Nature : \"texte\" \"photo\" \"topo\" \"kml\" \"carte\" \"autre\"","Titre","Date","Auteur document","Description Résumé","Texte ou Nom de fichier","Catégories","Réservé","Réservé","Réservé","Lié à \"entrée\" \"cavité\" \"terminus\"","Nature : \"texte\" \"photo\" \"topo\" \"kml\" \"carte\" \"autre\"","Titre","Date","Auteur document","Description Résumé","Texte ou Nom de fichier","Catégories","Réservé","Réservé","Réservé","Lié à \"entrée\" \"cavité\" \"terminus\"","Nature : \"texte\" \"photo\" \"topo\" \"kml\" \"carte\" \"autre\"","Titre","Date","Auteur document","Description Résumé","Texte ou Nom de fichier","Catégories","Réservé","Réservé","Réservé","Lié à \"entrée\" \"cavité\" \"terminus\"","Nature : \"texte\" \"photo\" \"topo\" \"kml\" \"carte\" \"autre\"","Titre","Date","Auteur document","Description Résumé","Texte ou Nom de fichier","Catégories","Réservé","Réservé","Réservé","Lié à \"entrée\" \"cavité\" \"terminus\"","Nature : \"texte\" \"photo\" \"topo\" \"kml\" \"carte\" \"autre\"","Titre","Date","Auteur document","Description Résumé","Texte ou Nom de fichier","Catégories","Réservé","Réservé","Réservé","Lié à \"entrée\" \"cavité\" \"terminus\"","Nature : \"texte\" \"photo\" \"topo\" \"kml\" \"carte\" \"autre\"","Titre","Date","Auteur document","Description Résumé","Texte ou Nom de fichier","Catégories","Réservé","Réservé","Réservé","Lié à \"entrée\" \"cavité\" \"terminus\"","Nature : \"texte\" \"photo\" \"topo\" \"kml\" \"carte\" \"autre\"","Titre","Date","Auteur document","Description Résumé","Texte ou Nom de fichier","Catégories","Réservé","Réservé","Réservé","Fin de ligne"]
[]
[]
[null,"Karabulak Gypsum Collapses 2",{"$nulls":6},266316.5,4166629.4,35,"m","UTM42",42,null,"Therion topo",{"$nulls":13},"N",{"$nulls":17},"Karabulak Gypsum Collapses",{"$nulls":11},"cavité","kml","Polygonale kml","5/5/225  1:16:5","","Polygonale de Karabulak Gypsum Collapses au format google earth","Cenotes_check-point-model.kml",87,{"$nulls":3},"cavité","kml","Polygonale kml","225-5-5 1:16:5","","Polygonale de Karabulak Gypsum Collapses au format google earth","Cenotes_check-point.kml",87,{"$nulls":3},"cavité","autre","Données topo brutes","225-5-5 1:16:5","","Topo de Karabulak Gypsum Collapses au format Therion","Karabulak Gypsum Collapses.zip",72,{"$nulls":6},"/1/19",{"$nulls":10},"/1/19",{"$nulls":10},"/1/19",{"$nulls":10},"/1/19",{"$nulls":10},"/1/19",{"$nulls":10},"/1/19",{"$nulls":95},"Fin de ligne"]
[null,"Karabulak Gypsum Collapses 1",{"$nulls":6},266339.2,4166732.8,351,"m","UTM42",42,null,"Therion topo",{"$nulls":13},"N",{"$nulls":17},"Karabulak Gypsum Collapses",{"$nulls":4},62.68,39.4,{"$nulls":8},"/1/19",{"$nulls":10},"/1/19",{"$nulls":10},"/1/19",{"$nulls":10},"/1/19",{"$nulls":10},"/1/19",{"$nulls":10},"/1/19",{"$nulls":10},"/1/19",{"$nulls":10},"/1/19",{"$nulls":106},"Fin de ligne"]
[null,"Grotte du lac ",{"$nulls":6},2663,417934,353,"m","UTM42",42,null,"Therion topo",{"$nulls":13},"N",{"$nulls":17},"Grotte du lac",{"$nulls":4},658.18,123.16,{"$nulls":5},"cavité","pdf","Grotte du lac - Coupe développée","5/5/225  1:16:8","Xavier Robert","Grotte du lac, topographie en coupe","Grotte_du_lac-coupe.pdf",73,{"$nulls":3},"cavité","pdf","Grotte du lac plan","225-5-5 1:16:9","Xavier Robert","Grotte du lac, topographie en Plan","Grotte_du_lac-plan.pdf",73,{"$nulls":3},"cavité","kml","Polygonale kml","225-5-5 1:16:5","","Polygonale de Grotte du lac au format google earth","Grotte_du_lac-model.kml",87,{"$nulls":4},"kml","Polygonale kml","225-5-5 1:16:5","","Polygonale de Grotte du lac au format google earth","Grotte_du_lac.kml",87,{"$nulls":3},"cavité","autre","Données topo brutes","225-5-5 1:16:5","","Topo de Grotte du lac au format Therion","Grotte du lac.zip",72,{"$nulls":6},"/1/19",{"$nulls":10},"/1/19",{"$nulls":10},"/1/19",{"$nulls":106},"Fin de ligne"]
[null,"Grotte du lac 1",{"$nulls":6},2662,417947,353,"m","UTM42",42,null,"Therion topo",{"$nulls":13},"N",{"$nulls":17},"Grotte du lac",{"$nulls":4},658.18,123.16,{"$nulls":8},"/1/19",{"$nulls":10},"/1/19",{"$nulls":10},"/1/19",{"$nulls":10},"/1/19",{"$nulls":10},"/1/19",{"$nulls":10},"/1/19",{"$nulls":10},"/1/19",{"$nulls":10},"/1/19",{"$nulls":106},"Fin de ligne"]
[null,"Kaptarhana",{"$nulls":6},2729.9,418992.6,62,"m","UTM42",42,null,"Therion topo",{"$nulls":13},"N",{"$nulls":17},"Kaptarkhana",{"$nulls":4},726.73,145.12,{"$nulls":5},"cavité","pdf","Kaptarkhana coupe développée - 1:1","25/4/225  23:43:1","Xavier Robert",null,"Kaptarkhana-coupe.pdf",73,{"$nulls":3},"cavité","kml","Polygonale kml","225-5-5 1:16:5","","Polygonale de Kaptarkhana au format google earth","Kaptarkhana-model.kml",87,{"$nulls":3},"cavité","kml","Polygonale kml","225-5-5 1:16:5","","Polygonale de Kaptarkhana au format google earth","Kaptarkhana.kml",87,{"$nulls":4},"autre","Données topo brutes","225-5-5 1:16:5","","Topo de Kaptarkhana au format Therion","Kaptarkhana.zip",72,{"$nulls":6},"/1/19",{"$nulls":10},"/1/19",{"$nulls":10},"/1/19",{"$nulls":10},"/1/19",{"$nulls":106},"Fin de ligne"]
[null,"Mumiyskaya",{"$nulls":6},271815.8,4189812.7,61,"m","UTM42",42,null,"Therion topo",{"$nulls":13},"N",{"$nulls":17},"Kaptarkhana",{"$nulls":4},726.73,145.12,{"$nulls":8},"/1/19",{"$nulls":10},"/1/19",{"$nulls":10},"/1/19",{"$nulls":10},"/1/19",{"$nulls":10},"/1/19",{"$nulls":10},"/1/19",{"$nulls":10},"/1/19",{"$nulls":10},"/1/19",{"$nulls":106},"Fin de ligne"]
[null,"New collapse 222",{"$nulls":6},271931.2,4164111.4,385,"m","UTM42",42,null,"Therion topo",{"$nulls":13},"N",{"$nulls":17},"New collapse 222",{"$nulls":4},7.84,39.31,{"$nulls":5},"cavité","pdf","New collapse 222 plan","5/5/225  1:16:18","Xavier Robert","Grotte New collapse 222, topographie en Plan","New_collapse_222-plan.pdf",73,{"$nulls":3},"cavité","kml","Polygonale kml","225-5-5 1:16:5","","Polygonale de New collapse 222 au format google earth","New_collapse_222-model.kml",87,{"$nulls":3},"cavité","kml","Polygonale kml","225-5-5 1:16:5","","Polygonale de New collapse 222 au format google earth","New_collapse_222.kml",87,{"$nulls":4},"autre","Données topo brutes","225-5-5 1:16:5","","Topo de New collapse 222 au format Therion","New collapse 222.zip",72,{"$nulls":6},"/1/19",{"$nulls":10},"/1/19",{"$nulls":10},"/1/19",{"$nulls":10},"/1/19",{"$nulls":106},"Fin de ligne"]
[null,"russes2",{"$nulls":6},263644.4,4174357.1,419,"m","UTM42",42,null,"Therion topo",{"$nulls":13},"N",{"$nulls":17},"Russes-CA",{"$nulls":4},63.24,22.35,{"$nulls":5},"cavité","pdf","Russes-CA coupe développée - 1:1","5/5/225  1:16:19","Xavier Robert",null,"Russes-CA-coupe.pdf",73,{"$nulls":3},"cavité","pdf","Russes-CA plan","225-5-5 1:16:2","Xavier Robert","Grotte Russes-CA, topographie en Plan","Russes-CA-plan.pdf",73,{"$nulls":3},"cavité","kml","Polygonale kml","225-5-5 1:16:5","","Polygonale de Russes-CA au format google earth","Russes-CA-model.kml",87,{"$nulls":4},"kml","Polygonale kml","225-5-5 1:16:5","","Polygonale de Russes-CA au format google earth","Russes-CA.kml",87,{"$nulls":3},"cavité","autre","Données topo brutes","225-5-5 1:16:5","","Topo de Russes-CA au format Therion","Russes-CA.zip",72,{"$nulls":6},"/1/19",{"$nulls":10},"/1/19",{"$nulls":10},"/1/19",{"$nulls":106},"Fin de ligne"]
[null,"russesbauge",{"$nulls":6},263629.1,4174346.5,417,"m","UTM42",42,null,"Therion topo",{"$nulls":13},"N",{"$nulls":17},"Russes-CA",{"$nulls":4},63.24,22.35,{"$nulls":8},"/1/19",{"$nulls":10},"/1/19",{"$nulls":10},"/1/19",{"$nulls":10},"/1/19",{"$nulls":10},"/1/19",{"$nulls":10},"/1/19",{"$nulls":10},"/1/19",{"$nulls":10},"/1/19",{"$nulls":106},"Fin de ligne"]
[null,"russes3",{"$nulls":6},263661,4174352.2,42,"m","UTM42",42,null,"Therion topo",{"$nulls":13},"N",{"$nulls":17},"Russes-CA",{"$nulls":4},63.24,22.35,{"$nulls":8},"/1/19",{"$nulls":10},"/1/19",{"$nulls":10},"/1/19",{"$nulls":10},"/1/19",{"$nulls":10},"/1/19",{"$nulls":10},"/1/19",{"$nulls":10},"/1/19",{"$nulls":10},"/1/19",{"$nulls":106},"Fin de ligne"]
[null,"Suw Oyuk Sinkhole",{"$nulls":6},27936.3,4164242.6,35,"m","UTM42",42,null,"Therion topo",{"$nulls":13},"N",{"$nulls":17},"Suwly-oyuk",{"$nulls":4},43.96,21.26,{"$nulls":5},"cavité","pdf","Suwly-oyuk coupe développée - 1:1","5/5/225  1:16:24","Xavier Robert",null,"Suwly-oyuk-coupe.pdf",73,{"$nulls":3},"cavité","pdf","Suwly-oyuk plan","225-5-5 1:16:26","Xavier Robert","Grotte Suwly-oyuk, topographie en Plan","Suwly-oyuk-plan.pdf",73,{"$nulls":3},"cavité","kml","Polygonale kml","225-5-5 1:16:5","","Polygonale de Suwly-oyuk au format google earth","Suwly-oyuk-model.kml",87,{"$nulls":4},"kml","Polygonale kml","225-5-5 1:16:5","","Polygonale de Suwly-oyuk au format google earth","Suwly-oyuk.kml",87,{"$nulls":3},"cavité","autre","Données topo brutes","225-5-5 1:16:5","","Topo de Suwly-oyuk au format Therion","Suwly-oyuk.zip",72,{"$nulls":6},"/1/19",{"$nulls":10},"/1/19",{"$nulls":10},"/1/19",{"$nulls":106},"Fin de ligne"]
[null,"chauves",{"$nulls":6},279964.5,41994.5,91,"m","UTM42",42,null,"Therion topo",{"$nulls":13},"N",{"$nulls":17},"Grotte des Chauves-Souris",{"$nulls":4},93.35,37.23,{"$nulls":5},"cavité","pdf","Chauve-Souris coupe développée - 1:1","5/5/225  1:16:28","Xavier Robert",null,"Chauve-Souris-coupe.pdf",73,{"$nulls":3},"cavité","pdf","Chauve-Souris plan","225-5-5 1:16:29","Xavier Robert","Grotte Chauve-Souris, topographie en Plan","Chauve-Souris-plan.pdf",73,{"$nulls":3},"cavité","kml","Polygonale kml","225-5-5 1:16:5","","Polygonale de Grotte des Chauves-Souris au format google earth","Chauve-Souris-model.kml",87,{"$nulls":4},"kml","Polygonale kml","225-5-5 1:16:5","","Polygonale de Grotte des Chauves-Souris au format google earth","Chauve-Souris.kml",87,{"$nulls":3},"cavité","autre","Données topo brutes","225-5-5 1:16:5","","Topo de Grotte des Chauves-Souris au format Therion","Grotte des Chauves-Souris.zip",72,{"$nulls":6},"/1/19",{"$nulls":10},"/1/19",{"$nulls":10},"/1/19",{"$nulls":106},"Fin de ligne"]
[null,"general",{"$nulls":6},281928.8,4197568.2,159,"m","UTM42",42,null,"Therion topo",{"$nulls":13},"N",{"$nulls":17},"Petit-General",{"$nulls":4},7.75,1.19,{"$nulls":5},"cavité","pdf","Petit-General coupe développée - 1:1","5/5/225  1:16:31","Xavier Robert",null,"Petit-General-coupe.pdf",73,{"$nulls":3},"cavité","pdf","Petit-General plan - 1:1","225-5-5 1:16:32","Xavier Robert",null,"Petit-General-plan.pdf",73,{"$nulls":3},"cavité","kml","Polygonale kml","225-5-5 1:16:5","","Polygonale de Petit-General au format google earth","Petit-General-model.kml",87,{"$nulls":4},"kml","Polygonale kml","225-5-5 1:16:5","","Polygonale de Petit-General au format google earth","Petit-General.kml",87,{"$nulls":3},"cavité","autre","Données topo brutes","225-5-5 1:16:5","","Topo de Petit-General au format Therion","Petit-General.zip",72,{"$nulls":6},"/1/19",{"$nulls":10},"/1/19",{"$nulls":10},"/1/19",{"$nulls":106},"Fin de ligne"]
[null,"Hanaka Main",{"$nulls":6},29461.7,422337.9,1297,"m","UTM42",42,null,"Therion topo",{"$nulls":13},"N",{"$nulls":17},"Hanaka",{"$nulls":4},195.55,12.27,{"$nulls":5},"cavité","pdf","Hanaka coupe développée - 1:1","5/5/225  1:16:34","Xavier Robert",null,"Hanaka-coupe.pdf",73,{"$nulls":3},"cavité","pdf","Hanaka plan - 1:1","225-5-5 1:16:35","Xavier Robert","Grotte Hanaka, topographie en Plan","Hanaka-plan.pdf",73,{"$nulls":3},"cavité","kml","Polygonale kml","225-5-5 1:16:5","","Polygonale de Hanaka au format google earth","Hanaka-model.kml",87,{"$nulls":4},"kml","Polygonale kml","225-5-5 1:16:5","","Polygonale de Hanaka au format google earth","Hanaka.kml",87,{"$nulls":3},"cavité","autre","Données topo brutes","225-5-5 1:16:5","","Topo de Hanaka au format Therion","Hanaka.zip",72,{"$nulls":6},"/1/19",{"$nulls":10},"/1/19",{"$nulls":10},"/1/19",{"$nulls":106},"Fin de ligne"]
[null,"Ahmethan Gypsum Cave n_2",{"$nulls":6},29385.2,422355.4,13,"m","UTM42",42,null,"Therion topo",{"$nulls":13},"N",{"$nulls":17},"Hanaka",{"$nulls":4},195.55,12.27,{"$nulls":8},"/1/19",{"$nulls":10},"/1/19",{"$nulls":10},"/1/19",{"$nulls":10},"/1/19",{"$nulls":10},"/1/19",{"$nulls":10},"/1/19",{"$nulls":10},"/1/19",{"$nulls":10},"/1/19",{"$nulls":106},"Fin de ligne"]
[null,"Grotte des Chevres ",{"$nulls":6},273421.9,4169493.2,913.4,"m","UTM42",42,null,"Therion topo",{"$nulls":13},"N",{"$nulls":17},"Grotte des Chèvres",{"$nulls":4},21.74,2.71,{"$nulls":5},"cavité","pdf","Chevres coupe développée - 1:1","224-7-29 2:27:9","Xavier Robert",null,"Chevres-coupe.pdf",73,{"$nulls":3},"cavité","pdf","Chevres plan - 1:1","224-7-29 2:29:27","Xavier Robert",null,"Chevres-plan - Old.pdf",73,{"$nulls":3},"cavité","pdf","Chevres plan - 1:1","225-5-5 1:16:4","Xavier Robert","Grotte des chèvres (Markhors), topographie en Plan","Chevres-plan.pdf",73,{"$nulls":4},"kml","Polygonale kml","225-5-5 1:16:5","","Polygonale de Grotte des Chèvres au format google earth","Chevres-model.kml",87,{"$nulls":3},"cavité","kml","Polygonale kml","225-5-5 1:16:5","","Polygonale de Grotte des Chèvres au format google earth","Chevres.kml",87,{"$nulls":3},"cavité","autre","Données topo brutes","225-5-5 1:16:5","","Topo de Grotte des Chèvres au format Therion","Grotte des Chèvres.zip",72,{"$nulls":6},"/1/19",{"$nulls":10},"/1/19",{"$nulls":106},"Fin de ligne"]
[null,"Gap-Gotan",{"$nulls":6},271312.4,416927.3,745,"m","UTM42",42,null,"Therion topo",{"$nulls":13},"N",{"$nulls":17},"Gap-Gotan",{"$nulls":4},464.87,563.88,{"$nulls":5},"cavité","pdf","Gap-Gotan coupe développée - 1:1","225-4-25 23:46:53","Xavier Robert",null,"Gap-Gotan-coupe.pdf",73,{"$nulls":3},"cavité","pdf","Gap-Gotan plan - 1:1","224-7-29 2:29:46","Xavier Robert",null,"Gap-Gotan-plan.pdf",73,{"$nulls":3},"cavité","kml","Polygonale kml","225-5-5 1:16:5","","Polygonale de Gap-Gotan au format google earth","Gap-Gotan-model.kml",87,{"$nulls":4},"kml","Polygonale kml","225-5-5 1:16:5","","Polygonale de Gap-Gotan au format google earth","Gap-Gotan.kml",87,{"$nulls":3},"cavité","autre","Données topo brutes","225-5-5 1:16:5","","Topo de Gap-Gotan au format Therion","Gap-Gotan.zip",72,{"$nulls":6},"/1/19",{"$nulls":10},"/1/19",{"$nulls":10},"/1/19",{"$nulls":106},"Fin de ligne"]
[null,"Gap-Gotan ; entree naturelle",{"$nulls":6},271541.4,4168829.2,774,"m","UTM42",42,null,"Therion topo",{"$nulls":13},"N",{"$nulls":17},"Gap-Gotan",{"$nulls":4},464.87,563.88,{"$nulls":8},"/1/19",{"$nulls":10},"/1/19",{"$nulls":10},"/1/19",{"$nulls":10},"/1/19",{"$nulls":10},"/1/19",{"$nulls":10},"/1/19",{"$nulls":10},"/1/19",{"$nulls":10},"/1/19",{"$nulls":106},"Fin de ligne"]
[null,"Entree naturelle",{"$nulls":6},27578.6,416963.9,65,"m","UTM42",42,null,"Therion topo",{"$nulls":13},"N",{"$nulls":17},"Gap-Gotan",{"$nulls":4},464.87,563.88,{"$nulls":8},"/1/19",{"$nulls":10},"/1/19",{"$nulls":10},"/1/19",{"$nulls":10},"/1/19",{"$nulls":10},"/1/19",{"$nulls":10},"/1/19",{"$nulls":10},"/1/19",{"$nulls":10},"/1/19",{"$nulls":106},"Fin de ligne"]
[null,"Promeszutochnaya tunnel amont",{"$nulls":6},2774.4,416944.4,645,"m","UTM42",42,null,"Therion topo",{"$nulls":13},"N",{"$nulls":17},"Gap-Gotan",{"$nulls":4},464.87,563.88,{"$nulls":8},"/1/19",{"$nulls":10},"/1/19",{"$nulls":10},"/1/19",{"$nulls":10},"/1/19",{"$nulls":10},"/1/19",{"$nulls":10},"/1/19",{"$nulls":10},"/1/19",{"$nulls":10},"/1/19",{"$nulls":106},"Fin de ligne"]
[null,"Tunnel aval",{"$nulls":6},27586.6,4168956,64,"m","UTM42",42,null,"Therion topo",{"$nulls":13},"N",{"$nulls":17},"Gap-Gotan",{"$nulls":4},464.87,563.88,{"$nulls":8},"/1/19",{"$nulls":10},"/1/19",{"$nulls":10},"/1/19",{"$nulls":10},"/1/19",{"$nulls":10},"/1/19",{"$nulls":10},"/1/19",{"$nulls":10},"/1/19",{"$nulls":10},"/1/19",{"$nulls":106},"Fin de ligne"]
[null,"Geophysicalskaya 1 entree",{"$nulls":6},27251,4172755,87,"m","UTM42",42,null,"Therion topo",{"$nulls":13},"N",{"$nulls":17},"Gulshirin (Geophysicheskaya)",{"$nulls":4},3878.98,559.52,{"$nulls":5},"cavité","pdf","Gulshirin (Geophysicheskaya) plan","225-5-5 1:17:3","Xavier Robert","Grotte Gulshirin (Geophysicheskaya), topographie en Plan","Geophysicheskaya-plan.pdf",73,{"$nulls":3},"cavité","pdf","Gulshirin (Geophysicheskaya) plan - 1:1","225-5-5 1:17:32","Alexandre Pont","Grotte Gulshirin (Geophysicheskaya), topographie en Plan","Geophysicheskaya-plan_Spelunca.pdf",73,{"$nulls":3},"cavité","kml","Polygonale kml","225-5-5 1:16:5","","Polygonale de Gulshirin (Geophysicheskaya) au format google earth","Geophysicheskaya-model.kml",87,{"$nulls":4},"kml","Polygonale kml","225-5-5 1:16:5","","Polygonale de Gulshirin (Geophysicheskaya) au format google earth","Geophysicheskaya.kml",87,{"$nulls":3},"cavité","autre","Données topo brutes","225-5-5 1:16:5","","Topo de Gulshirin (Geophysicheskaya) au format Therion","Gulshirin (Geophysicheskaya).zip",72,{"$nulls":6},"/1/19",{"$nulls":10},"/1/19",{"$nulls":10},"/1/19",{"$nulls":106},"Fin de ligne"]
[null,"Entree Hochimoyouk ",{"$nulls":6},26974.3,4169375.7,625,"m","UTM42",42,null,"Therion topo",{"$nulls":13},"N",{"$nulls":17},"Hashim-oyuk",{"$nulls":4},5414.2,186.81,{"$nulls":5},"cavité","pdf","Hashim-oyuk coupe développée - 1:1","224-9-26 12:59:52","Xavier Robert",null,"Hashim-oyuk-coupe.pdf",73,{"$nulls":3},"cavité","pdf","Hashim-oyuk plan - 1:2","225-5-5 1:18:5","Alexandre Pont, Jean-Paul Héreil","Grotte Hashim-oyuk, topographie en plan","Hashim-oyuk-plan.pdf",73,{"$nulls":3},"cavité","pdf","Hashim-oyuk plan - 1:2","225-5-5 1:18:52","Alexandre Pont","Grotte Hashim-oyuk, topographie en plan","Hashim-oyuk-plan_Spelunca.pdf",73,{"$nulls":4},"kml","Polygonale kml","225-5-5 1:16:5","","Polygonale de Hashim-oyuk au format google earth","Hashim-oyuk-model.kml",87,{"$nulls":3},"cavité","kml","Polygonale kml","225-5-5 1:16:5","","Polygonale de Hashim-oyuk au format google earth","Hashim-oyuk.kml",87,{"$nulls":3},"cavité","autre","Données topo brutes","225-5-5 1:16:5","","Topo de Hashim-oyuk au format Therion","Hashim-oyuk.zip",72,{"$nulls":6},"/1/19",{"$nulls":10},"/1/19",{"$nulls":106},"Fin de ligne"]
[null,"Trush-Yurruck Entree",{"$nulls":6},271921.3,417897.2,885,"m","UTM42",42,null,"Therion topo",{"$nulls":13},"N",{"$nulls":17},"Tush-Yurruck",{"$nulls":4},3623.35,499.26,{"$nulls":5},"cavité","pdf","Tush-Yurruck plan ","225-5-5 1:2:18","Xavier Robert","Grotte Tush-Yurruck, topographie en plan","Tush-Yurruck-plan.pdf",73,{"$nulls":3},"cavité","pdf","Tush-Yurruck plan - 1:1","225-5-5 1:2:2","Alexandre Pont","Grotte Tush-Yurruck, topographie en plan","Tush-Yurruck-plan_Spelunca.pdf",73,{"$nulls":3},"cavité","kml","Polygonale kml","225-5-5 1:16:5","","Polygonale de Tush-Yurruck au format google earth","Tush-Yurruck-model.kml",87,{"$nulls":4},"kml","Polygonale kml","225-5-5 1:16:5","","Polygonale de Tush-Yurruck au format google earth","Tush-Yurruck.kml",87,{"$nulls":3},"cavité","autre","Données topo brutes","225-5-5 1:16:5","","Topo de Tush-Yurruck au format Therion","Tush-Yurruck.zip",72,{"$nulls":6},"/1/19",{"$nulls":10},"/1/19",{"$nulls":10},"/1/19",{"$nulls":106},"Fin de ligne"]
[null,"Vertikalnaya",{"$nulls":6},269965.6,417369.5,85,"m","UTM42",42,null,"Therion topo",{"$nulls":13},"N",{"$nulls":17},"Vertikalnaya",{"$nulls":4},544.83,29.97,{"$nulls":5},"cavité","pdf","Vertikalnaya coupe développée - 1:5","224-7-31 19:12:","Xavier Robert",null,"Vertikalnaya-coupe - Old.pdf",73,{"$nulls":3},"cavité","pdf","Vertikalnaya coupe développée","225-5-5 1:21:48","Xavier Robert","Gouffre Vertikalnaya, topographie en coupe développée","Vertikalnaya-coupe.pdf",73,{"$nulls":3},"cavité","pdf","Vertikalnaya coupe développée - 1:5","225-5-5 1:21:49","Alexandre Pont","Gouffre Vertikalnaya, topographie en coupe développée","Vertikalnaya-coupe_Spelunca.pdf",73,{"$nulls":4},"pdf","Vertikalnaya plan - 1:5","224-7-31 19:12:2","Xavier Robert",null,"Vertikalnaya-plan - Old.pdf",73,{"$nulls":3},"cavité","pdf","Vertikalnaya plan","225-5-5 1:21:49","Xavier Robert","Gouffre Vertikalnaya, topographie en plan","Vertikalnaya-plan.pdf",73,{"$nulls":3},"cavité","pdf","Vertikalnaya plan - 1:5","225-5-5 1:21:5","Alexandre Pont","Gouffre Vertikalnaya, topographie en plan","Vertikalnaya-plan_Spelunca.pdf",73,{"$nulls":3},"cavité","kml","Polygonale kml","225-5-5 1:16:5","","Polygonale de Vertikalnaya au format google earth","Vertikalnaya-model.kml",87,{"$nulls":3},"cavité","kml","Polygonale kml","225-5-5 1:16:5","","Polygonale de Vertikalnaya au format google earth","Vertikalnaya.kml",87,{"$nulls":102},"Fin de ligne"]

{"sheet":"N° de colonne","index":3,"n_rows":13,"n_cols":14,"rows_kept":13}
[]
[{"$nulls":6},"Position des colonne des données Thérion / Karsteau"]
[{"$nulls":6},"Pas : +12"]
[]
[{"$nulls":5},"Doc 1","Doc 2","Doc 3","Doc 4","Doc 5","Doc 6","Doc 7","Doc 8","Doc 9"]
[{"$nulls":4},"Lié à \"entrée\" \"cavité\" \"terminus\"",40,{"$f":"F6+12","v":52},64,76,88,100,112,124,136]
[{"$nulls":4},"Nature : \"texte\" \"photo\" \"topo\" \"kml\" \"carte\" \"autre\"",41,{"$f":"F7+12","v":53},65,77,89,101,113,125,137]
[{"$nulls":4},"Titre",43,55,67,79,91,103,115,127,139]
[{"$nulls":4},"Date",34,46,58,70,82,94,106,118,130]
[{"$nulls":4},"Auteur document",32,44,56,68,80,92,104,116,128]
[{"$nulls":4},"Description Résumé",36,48,60,72,84,96,108,120,132]
[{"$nulls":4},"Texte ou Nom de fichier",37,49,61,73,85,97,109,121,133]
[{"$nulls":4},"Catégories",33,45,57,69,81,93,105,117,129]

{"sheet":"Formule pour fichier","index":4,"n_rows":19,"n_cols":7,"rows_kept":19}
[]
[{"$nulls":3},"Formule à utiser si nécessaire pour récupération des noms de fichiers"]
[{"$nulls":4},"Formule à conserver","=","DROITE(G3;NBCAR(G3)-CHERCHE(\"¤\";SUBSTITUE(G3;\"/\";\"¤\";NBCAR(G3)-NBCAR(SUBSTITUE(G3;\"/\";\"\")))))"]
[]
[{"$nulls":3},"Source","Résultat"]
[{"$nulls":3},"Data/Gypse/Grotte_du_lac/Outputs/Grotte_du_lac.kml",{"$f":"RIGHT(D6,LEN(D6)-SEARCH(\"¤\",SUBSTITUTE(D6,\"/\",\"¤\",LEN(D6)-LEN(SUBSTITUTE(D6,\"/\",\"\")))))","v":"Grotte_du_lac.kml"}]
[{"$nulls":3},"Data/Gypse/Kaptarkhana/Outputs/Kaptarkhana.zip",{"$f":"RIGHT(D7,LEN(D7)-SEARCH(\"¤\",SUBSTITUTE(D7,\"/\",\"¤\",LEN(D7)-LEN(SUBSTITUTE(D7,\"/\",\"\")))))","v":"Kaptarkhana.zip"}]
[{"$nulls":3},"Data/Gypse/New_collapse_2022/Outputs/New collapse 2022.zip","New collapse 2022.zip"]
[{"$nulls":3},"Data/Gypse/Russes-CA/Outputs/Russes-CA.kml","Russes-CA.kml"]
[{"$nulls":3},"Data/Gypse/Suwly-oyuk/Outputs/Suwly-oyuk.kml","Suwly-oyuk.kml"]
[{"$nulls":3},"Data/Koyten/Data/Chauve-Souris/Outputs/Chauve-Souris.kml","Chauve-Souris.kml"]
[{"$nulls":3},"Data/Koyten/Data/Petit-General/Outputs/Petit-General.kml","Petit-General.kml"]
[{"$nulls":3},"Data/Nord/Ahmethan/Outputs/Hanaka.kml","Hanaka.kml"]
[{"$nulls":3},"Data/Sud/Data/Chevres/Outputs/Chevres-model.kml","Chevres-model.kml"]
[{"$nulls":3},"Data/Sud/Data/Gap-Gotan/Outputs/Gap-Gotan.kml","Gap-Gotan.kml"]
[{"$nulls":3},"Data/Sud/Data/Geophysicheskaya/Outputs/Geophysicheskaya.kml","Geophysicheskaya.kml"]
[{"$nulls":3},"Data/Sud/Data/Hashim-oyuk/Outputs/Hashim-oyuk-model.kml","Hashim-oyuk-model.kml"]
[{"$nulls":3},"Data/Sud/Data/Tush-Yurruck/Outputs/Tush-Yurruck.kml","Tush-Yurruck.kml"]
[{"$nulls":3},"Data/Sud/Data/Vertikalnaya/Outputs/Vertikalnaya-plan - Old.pdf","Vertikalnaya-plan - Old.pdf"]

{"sheet":"Feuil2","index":5,"n_rows":0,"n_cols":0,"rows_kept":0}